[Event "Live Chess"]
[Site "Chess.com"]
[Date "2023.05.20"]
[Round "-"]
[White "ChippyChill"]
[Black "mpersander"]
[Result "0-1"]
[WhiteElo "412"]
[BlackElo "1000"]
[TimeControl "300"]
[EndTime "12:38:17 PDT"]
[Termination "mpersander won by resignation"]

1. d4 {[%clk 0:04:55.1]} 1... Nf6 {[%clk 0:04:54.3]} 2. g3 {[%clk 0:04:47.6]}
2... g6 {[%clk 0:04:50.6]} 3. Nf3 {[%clk 0:04:44]} 3... d5 {[%clk 0:04:48]} 4.
Bg2 {[%clk 0:04:40.4]} 4... Bg7 {[%clk 0:04:44.9]} 5. O-O {[%clk 0:04:07]} 5...
O-O {[%clk 0:04:25.1]} 6. Bg5 {[%clk 0:03:58.2]} 6... Nc6 {[%clk 0:04:13.8]} 7.
Bxf6 {[%clk 0:03:49.9]} 7... Bxf6 {[%clk 0:04:08]} 8. c3 {[%clk 0:03:46.3]} 8...
Bf5 {[%clk 0:04:03]} 9. Na3 {[%clk 0:03:40.9]} 9... a6 {[%clk 0:03:58]} 10. e3
{[%clk 0:03:33.5]} 10... Bg4 {[%clk 0:03:54]} 11. Rc1 {[%clk 0:03:16]} 11... e6
{[%clk 0:03:46.7]} 12. b4 {[%clk 0:02:57.4]} 12... Ne7 {[%clk 0:03:40.4]} 13.
Qd3 {[%clk 0:02:37.7]} 13... Bxf3 {[%clk 0:03:14.6]} 14. Bxf3 {[%clk 0:02:29.7]}
14... b5 {[%clk 0:03:10.6]} 15. Rfd1 {[%clk 0:02:18.4]} 15... Rc8 {[%clk
0:03:01.4]} 16. Bg4 {[%clk 0:02:14.6]} 16... Nc6 {[%clk 0:02:45.5]} 17. f4
{[%clk 0:02:02.7]} 17... Qe7 {[%clk 0:02:39]} 18. e4 {[%clk 0:01:59.8]} 18...
dxe4 {[%clk 0:02:29.7]} 19. Qxe4 {[%clk 0:01:57.9]} 19... Nxb4 {[%clk
0:02:28.5]} 20. Ra1 {[%clk 0:01:40.3]} 20... Nc2 {[%clk 0:02:18]} 21. Qxc2
{[%clk 0:01:33]} 21... Qxa3 {[%clk 0:02:16.5]} 22. Bf3 {[%clk 0:01:18.1]} 22...
c5 {[%clk 0:02:14.2]} 23. Bb7 {[%clk 0:01:08.5]} 23... Rc7 {[%clk 0:02:10.5]}
24. Be4 {[%clk 0:01:04.2]} 24... cxd4 {[%clk 0:02:05.2]} 25. cxd4 {[%clk
0:01:01.7]} 25... Rxc2 {[%clk 0:02:03.7]} 0-1

[Event "Live Chess"]
[Site "Chess.com"]
[Date "2023.05.20"]
[Round "-"]
[White "Brooms1989"]
[Black "RoaringKnights"]
[Result "0-1"]
[WhiteElo "1010"]
[BlackElo "992"]
[TimeControl "300"]
[EndTime "12:38:32 PDT"]
[Termination "RoaringKnights won by checkmate"]

1. e4 {[%clk 0:04:55.9]} 1... c6 {[%clk 0:04:59]} 2. d4 {[%clk 0:04:54.3]} 2...
Qa5+ {[%clk 0:04:54.9]} 3. Bd2 {[%clk 0:04:44.9]} 3... Qb6 {[%clk 0:04:47.5]} 4.
Nf3 {[%clk 0:04:37.3]} 4... Qxb2 {[%clk 0:04:44.1]} 5. Nc3 {[%clk 0:04:28.4]}
5... Qb6 {[%clk 0:04:34.6]} 6. Bd3 {[%clk 0:04:19.4]} 6... Qd8 {[%clk 0:04:32]}
7. O-O {[%clk 0:04:14.3]} 7... d5 {[%clk 0:04:31]} 8. exd5 {[%clk 0:04:08.5]}
8... cxd5 {[%clk 0:04:30.1]} 9. Bb5+ {[%clk 0:04:08]} 9... Nc6 {[%clk
0:04:28.5]} 10. Re1 {[%clk 0:04:03.1]} 10... Bg4 {[%clk 0:04:25.6]} 11. h3
{[%clk 0:04:00.8]} 11... Bh5 {[%clk 0:04:24.4]} 12. Re5 {[%clk 0:03:56.3]} 12...
Nf6 {[%clk 0:04:08.9]} 13. Bg5 {[%clk 0:03:37.8]} 13... a6 {[%clk 0:04:06.4]}
14. Bxf6 {[%clk 0:03:32.8]} 14... axb5 {[%clk 0:04:02.7]} 15. Rxd5 {[%clk
0:03:24]} 15... Qa5 {[%clk 0:03:49]} 16. Qd3 {[%clk 0:02:49.2]} 16... Bxf3
{[%clk 0:03:44.1]} 17. Qxf3 {[%clk 0:02:43.5]} 17... exf6 {[%clk 0:03:42.9]} 18.
Re1+ {[%clk 0:02:42]} 18... Be7 {[%clk 0:03:41.4]} 19. Rxb5 {[%clk 0:02:33.9]}
19... Qa6 {[%clk 0:03:28.7]} 20. Rb3 {[%clk 0:01:59.8]} 20... Nxd4 {[%clk
0:03:21.2]} 21. Qe3 {[%clk 0:01:55.1]} 21... Ne6 {[%clk 0:02:57.7]} 22. Nd5
{[%clk 0:01:33.5]} 22... Qd6 {[%clk 0:02:37.4]} 23. Rd3 {[%clk 0:01:20.1]} 23...
Qc5 {[%clk 0:02:19.2]} 24. Qxc5 {[%clk 0:01:10.2]} 24... Bxc5 {[%clk 0:02:16]}
25. Nc7+ {[%clk 0:01:06.4]} 25... Ke7 {[%clk 0:02:14.5]} 26. Nxa8 {[%clk
0:00:56.1]} 26... Rxa8 {[%clk 0:01:48]} 27. Red1 {[%clk 0:00:50.6]} 27... Rd8
{[%clk 0:01:39.7]} 28. Rb3 {[%clk 0:00:45.4]} 28... Rxd1+ {[%clk 0:01:37.5]} 29.
Kh2 {[%clk 0:00:44.2]} 29... Bxf2 {[%clk 0:01:33.6]} 30. Rxb7+ {[%clk
0:00:42.9]} 30... Rd7 {[%clk 0:01:30.9]} 31. Rb1 {[%clk 0:00:41.2]} 31... Nd4
{[%clk 0:01:23.6]} 32. a4 {[%clk 0:00:39.2]} 32... Be3 {[%clk 0:01:13.6]} 33. a5
{[%clk 0:00:36.4]} 33... Nxc2 {[%clk 0:01:11.2]} 34. Rb2 {[%clk 0:00:33.2]}
34... Bf4+ {[%clk 0:01:06.4]} 35. Kh1 {[%clk 0:00:31.3]} 35... Rd1# {[%clk
0:01:04.2]} 0-1

[Event "Live Chess"]
[Site "Chess.com"]
[Date "2023.05.20"]
[Round "-"]
[White "thrithik"]
[Black "DmitryVasliev"]
[Result "0-1"]
[WhiteElo "380"]
[BlackElo "1661"]
[TimeControl "300"]
[EndTime "12:38:35 PDT"]
[Termination "DmitryVasliev won by checkmate"]

1. f3 {[%clk 0:04:57.9]} 1... d6 {[%clk 0:04:59.5]} 2. g3 {[%clk 0:04:55.3]}
2... c6 {[%clk 0:04:59.1]} 3. Nh3 {[%clk 0:04:52.1]} 3... g6 {[%clk 0:04:58.2]}
4. Nf4 {[%clk 0:04:49.8]} 4... Bg7 {[%clk 0:04:57.5]} 5. Nxg6 {[%clk 0:04:48.6]}
5... hxg6 {[%clk 0:04:56]} 6. Bh3 {[%clk 0:04:44.6]} 6... Bxh3 {[%clk 0:04:54]}
7. Nc3 {[%clk 0:04:39.7]} 7... b5 {[%clk 0:04:46.2]} 8. Ne4 {[%clk 0:04:34.3]}
8... Bg2 {[%clk 0:04:34.9]} 9. Rg1 {[%clk 0:04:32.7]} 9... Rxh2 {[%clk
0:04:33.2]} 10. Rxg2 {[%clk 0:04:16.2]} 10... Rxg2 {[%clk 0:04:31.5]} 11. Kf1
{[%clk 0:04:06.9]} 11... Rh2 {[%clk 0:04:30.5]} 12. Nxd6+ {[%clk 0:03:59.2]}
12... exd6 {[%clk 0:04:28]} 13. Kg1 {[%clk 0:03:53.8]} 13... Rh8 {[%clk
0:04:23.7]} 14. Qf1 {[%clk 0:03:52.4]} 14... Nf6 {[%clk 0:04:11.1]} 15. Qf2
{[%clk 0:03:51.7]} 15... c5 {[%clk 0:04:04.5]} 16. Qe3+ {[%clk 0:03:51.2]} 16...
Kf8 {[%clk 0:04:02.8]} 17. Qg5 {[%clk 0:03:42]} 17... Rh5 {[%clk 0:03:57.9]} 18.
Qg4 {[%clk 0:03:34.4]} 18... Nxg4 {[%clk 0:03:56.1]} 19. fxg4 {[%clk 0:03:32.2]}
19... Rg5 {[%clk 0:03:52.1]} 20. e3 {[%clk 0:03:28.6]} 20... Rxg4 {[%clk
0:03:50.9]} 21. Kg2 {[%clk 0:03:27.4]} 21... Qh4 {[%clk 0:03:49.3]} 22. d3
{[%clk 0:03:24.2]} 22... Qxg3+ {[%clk 0:03:47.7]} 23. Kf1 {[%clk 0:03:20.5]}
23... Qg1+ {[%clk 0:03:41.6]} 24. Ke2 {[%clk 0:03:17.3]} 24... Rg3 {[%clk
0:03:31.2]} 25. Bd2 {[%clk 0:03:16.2]} 25... Qg2+ {[%clk 0:03:26.6]} 26. Kd1
{[%clk 0:03:11.1]} 26... Qf3+ {[%clk 0:03:21.2]} 27. Kc1 {[%clk 0:03:04.4]}
27... Rg1+ {[%clk 0:03:20.2]} 28. Be1 {[%clk 0:02:54.5]} 28... Rxe1+ {[%clk
0:03:18.2]} 29. Kd2 {[%clk 0:02:52.5]} 29... Qe2# {[%clk 0:03:15.5]} 0-1

[Event "Live Chess"]
[Site "Chess.com"]
[Date "2023.05.20"]
[Round "-"]
[White "Wild_Tiger"]
[Black "alanmike75"]
[Result "0-1"]
[WhiteElo "1056"]
[BlackElo "1534"]
[TimeControl "300"]
[EndTime "12:38:38 PDT"]
[Termination "alanmike75 won by checkmate"]

1. d4 {[%clk 0:04:57.5]} 1... d5 {[%clk 0:04:57.8]} 2. Nf3 {[%clk 0:04:57.2]}
2... c6 {[%clk 0:04:56.8]} 3. e3 {[%clk 0:04:56.9]} 3... Nf6 {[%clk 0:04:55.3]}
4. Bd3 {[%clk 0:04:56.1]} 4... Nbd7 {[%clk 0:04:54.2]} 5. O-O {[%clk 0:04:35.6]}
5... e6 {[%clk 0:04:52.3]} 6. Nbd2 {[%clk 0:04:31.4]} 6... Bd6 {[%clk
0:04:50.6]} 7. b3 {[%clk 0:04:28.1]} 7... e5 {[%clk 0:04:48.8]} 8. dxe5 {[%clk
0:04:20.3]} 8... Nxe5 {[%clk 0:04:47.3]} 9. Bb2 {[%clk 0:04:16.8]} 9... Nxd3
{[%clk 0:04:45.4]} 10. cxd3 {[%clk 0:04:12.4]} 10... O-O {[%clk 0:04:43.9]} 11.
Ne5 {[%clk 0:04:08.5]} 11... Re8 {[%clk 0:04:27.1]} 12. f4 {[%clk 0:04:06.9]}
12... Bf5 {[%clk 0:04:09.4]} 13. d4 {[%clk 0:04:01.3]} 13... Ne4 {[%clk
0:04:01.5]} 14. Rf3 {[%clk 0:03:52.6]} 14... f6 {[%clk 0:03:55.1]} 15. Nxe4
{[%clk 0:03:40.8]} 15... dxe4 {[%clk 0:03:50.7]} 16. Rg3 {[%clk 0:03:32.9]}
16... fxe5 {[%clk 0:03:45.8]} 17. dxe5 {[%clk 0:03:29.3]} 17... Bf8 {[%clk
0:03:44.1]} 18. Qh5 {[%clk 0:03:21.4]} 18... Bg6 {[%clk 0:03:32.3]} 19. Rxg6
{[%clk 0:03:13.2]} 19... hxg6 {[%clk 0:03:30.2]} 20. Qxg6 {[%clk 0:03:10.9]}
20... Qe7 {[%clk 0:03:22.9]} 21. Qxe4 {[%clk 0:03:06.3]} 21... Qc5 {[%clk
0:03:12.7]} 22. e6 {[%clk 0:02:56.6]} 22... Qd5 {[%clk 0:03:02.2]} 23. Qg6
{[%clk 0:02:40.9]} 23... Qxe6 {[%clk 0:02:58.4]} 24. Qg3 {[%clk 0:02:29.3]}
24... Qxe3+ {[%clk 0:02:55.8]} 25. Kh1 {[%clk 0:02:15.4]} 25... Qxg3 {[%clk
0:02:54.3]} 26. hxg3 {[%clk 0:02:15.3]} 26... Re2 {[%clk 0:02:51.9]} 27. Be5
{[%clk 0:02:11.3]} 27... Rd8 {[%clk 0:02:46]} 28. a3 {[%clk 0:02:07.5]} 28...
Rdd2 {[%clk 0:02:44.3]} 29. Rg1 {[%clk 0:02:03.7]} 29... Bc5 {[%clk 0:02:42.6]}
30. Rf1 {[%clk 0:01:53.7]} 30... Rxg2 {[%clk 0:02:38.8]} 31. b4 {[%clk
0:01:42.9]} 31... Rh2# {[%clk 0:02:36.7]} 0-1

[Event "Live Chess"]
[Site "Chess.com"]
[Date "2023.05.20"]
[Round "-"]
[White "xx_blindpuffin_xx"]
[Black "defenderalist"]
[Result "1-0"]
[WhiteElo "2215"]
[BlackElo "1589"]
[TimeControl "300"]
[EndTime "12:38:54 PDT"]
[Termination "xx_blindpuffin_xx won by checkmate"]

1. d4 {[%clk 0:04:58.6]} 1... e6 {[%clk 0:04:58.6]} 2. Bf4 {[%clk 0:04:58.1]}
2... Nf6 {[%clk 0:04:57.9]} 3. e3 {[%clk 0:04:57.5]} 3... d5 {[%clk 0:04:57.3]}
4. Nf3 {[%clk 0:04:56.6]} 4... Bd6 {[%clk 0:04:56.2]} 5. Bg3 {[%clk 0:04:55.4]}
5... Bxg3 {[%clk 0:04:55.2]} 6. hxg3 {[%clk 0:04:54.2]} 6... O-O {[%clk
0:04:53.9]} 7. Bd3 {[%clk 0:04:53.1]} 7... g6 {[%clk 0:04:51.9]} 8. Nbd2 {[%clk
0:04:48.4]} 8... b6 {[%clk 0:04:50.6]} 9. c4 {[%clk 0:04:46.8]} 9... c5 {[%clk
0:04:49.7]} 10. dxc5 {[%clk 0:04:44.7]} 10... dxc4 {[%clk 0:04:47.7]} 11. Nxc4
{[%clk 0:04:40]} 11... bxc5 {[%clk 0:04:42.8]} 12. O-O {[%clk 0:04:36.9]} 12...
Bb7 {[%clk 0:04:40.9]} 13. Qc2 {[%clk 0:04:30]} 13... Nc6 {[%clk 0:04:28.3]} 14.
a3 {[%clk 0:04:26.1]} 14... e5 {[%clk 0:04:19.2]} 15. Ncxe5 {[%clk 0:04:21.1]}
15... Nxe5 {[%clk 0:04:17.8]} 16. Nxe5 {[%clk 0:04:20]} 16... Qd5 {[%clk
0:04:11.9]} 17. Nf3 {[%clk 0:04:18.7]} 17... Ne4 {[%clk 0:04:04.9]} 18. Rad1
{[%clk 0:04:14.8]} 18... Qe6 {[%clk 0:03:55.3]} 19. Bxe4 {[%clk 0:03:58.1]}
19... Bxe4 {[%clk 0:03:51.5]} 20. Qxc5 {[%clk 0:03:56.8]} 20... Bxf3 {[%clk
0:03:47]} 21. gxf3 {[%clk 0:03:55.7]} 21... h5 {[%clk 0:03:41.8]} 22. Rd6 {[%clk
0:03:40.3]} 22... Qh3 {[%clk 0:03:31]} 23. Rd4 {[%clk 0:03:29.1]} 23... Qe6
{[%clk 0:03:17.8]} 24. Rfd1 {[%clk 0:03:18]} 24... Qf6 {[%clk 0:03:12.1]} 25.
Kg2 {[%clk 0:03:14.8]} 25... Rfb8 {[%clk 0:03:08.4]} 26. b4 {[%clk 0:03:04]}
26... Rf8 {[%clk 0:03:00.2]} 27. Rf4 {[%clk 0:03:01.6]} 27... Qe6 {[%clk
0:02:49.9]} 28. Rd6 {[%clk 0:02:59.3]} 28... Qb3 {[%clk 0:02:42.8]} 29. Qg5
{[%clk 0:02:57.4]} 29... Kh7 {[%clk 0:02:34.5]} 30. Rh4 {[%clk 0:02:53.9]} 30...
Rg8 {[%clk 0:02:02.4]} 31. Rxh5+ {[%clk 0:02:49.3]} 31... gxh5 {[%clk
0:02:01.1]} 32. Rh6# {[%clk 0:02:47.6]} 1-0

[Event "Live Chess"]
[Site "Chess.com"]
[Date "2023.05.20"]
[Round "-"]
[White "omisoc"]
[Black "booktrunk"]
[Result "1-0"]
[WhiteElo "2185"]
[BlackElo "1304"]
[TimeControl "300"]
[EndTime "12:38:56 PDT"]
[Termination "omisoc won by resignation"]

1. b3 {[%clk 0:04:57.5]} 1... d5 {[%clk 0:04:59.9]} 2. e3 {[%clk 0:04:55.5]}
2... Bf5 {[%clk 0:04:56.8]} 3. Bb2 {[%clk 0:04:53.9]} 3... f6 {[%clk 0:04:55.1]}
4. d4 {[%clk 0:04:51]} 4... Nc6 {[%clk 0:04:51.6]} 5. Bd3 {[%clk 0:04:49.6]}
5... Bxd3 {[%clk 0:04:46.8]} 6. Qxd3 {[%clk 0:04:47.2]} 6... e6 {[%clk 0:04:46]}
7. Nf3 {[%clk 0:04:45.4]} 7... Bb4+ {[%clk 0:04:44.3]} 8. Nbd2 {[%clk 0:04:43]}
8... Bd6 {[%clk 0:04:40.2]} 9. O-O {[%clk 0:04:40.8]} 9... Nb4 {[%clk 0:04:39]}
10. Qc3 {[%clk 0:04:38.8]} 10... a5 {[%clk 0:04:37.7]} 11. a3 {[%clk 0:04:36.4]}
11... Nc6 {[%clk 0:04:34.8]} 12. Qd3 {[%clk 0:04:35.8]} 12... Nge7 {[%clk
0:04:30.6]} 13. c4 {[%clk 0:04:34.9]} 13... dxc4 {[%clk 0:04:28.8]} 14. bxc4
{[%clk 0:04:27.5]} 14... Nf5 {[%clk 0:04:26.1]} 15. e4 {[%clk 0:04:25.5]} 15...
Nfe7 {[%clk 0:04:21.7]} 16. Rfe1 {[%clk 0:04:12.9]} 16... O-O {[%clk 0:04:19.5]}
17. Rad1 {[%clk 0:04:11.9]} 17... Ng6 {[%clk 0:04:17.4]} 18. g3 {[%clk
0:04:08.8]} 18... Qe7 {[%clk 0:04:15.5]} 19. c5 {[%clk 0:04:06.6]} 19... Bxc5
{[%clk 0:04:08.4]} 20. dxc5 {[%clk 0:04:04.9]} 20... Qxc5 {[%clk 0:04:07.6]} 21.
e5 {[%clk 0:03:57.8]} 21... Ngxe5 {[%clk 0:04:03.2]} 22. Nxe5 {[%clk 0:03:53.9]}
22... Nxe5 {[%clk 0:04:01.8]} 23. Bxe5 {[%clk 0:03:51.4]} 23... fxe5 {[%clk
0:04:01]} 24. Ne4 {[%clk 0:03:50.4]} 24... Qb6 {[%clk 0:03:55.1]} 25. Rb1 {[%clk
0:03:46.4]} 25... Qa7 {[%clk 0:03:52.9]} 26. Qd7 {[%clk 0:03:41.7]} 26... Rad8
{[%clk 0:03:47.5]} 27. Qxc7 {[%clk 0:03:35.9]} 27... Rd4 {[%clk 0:03:44.2]} 28.
Qb6 {[%clk 0:03:33.1]} 28... Qa8 {[%clk 0:03:37.2]} 29. Qxe6+ {[%clk 0:03:31]}
29... Kh8 {[%clk 0:03:33.9]} 30. Nd6 {[%clk 0:03:29]} 30... Qa7 {[%clk
0:03:30.1]} 31. Nf7+ {[%clk 0:03:24.9]} 31... Kg8 {[%clk 0:03:27.5]} 32. Nh6+
{[%clk 0:03:22.4]} 32... Kh8 {[%clk 0:03:26.5]} 33. Qg8+ {[%clk 0:03:21.4]} 1-0

[Event "Live Chess"]
[Site "Chess.com"]
[Date "2023.05.20"]
[Round "-"]
[White "kevinmilleruk"]
[Black "LiamClery2020"]
[Result "0-1"]
[WhiteElo "1120"]
[BlackElo "2085"]
[TimeControl "300"]
[EndTime "12:38:59 PDT"]
[Termination "LiamClery2020 won by resignation"]

1. c4 {[%clk 0:04:58.6]} 1... Nf6 {[%clk 0:04:59.9]} 2. Nc3 {[%clk 0:04:56.8]}
2... e5 {[%clk 0:04:55.4]} 3. g3 {[%clk 0:04:54.7]} 3... c6 {[%clk 0:04:51.1]}
4. Bg2 {[%clk 0:04:54]} 4... d5 {[%clk 0:04:50]} 5. cxd5 {[%clk 0:04:52.6]} 5...
cxd5 {[%clk 0:04:49.9]} 6. d3 {[%clk 0:04:51]} 6... d4 {[%clk 0:04:48.8]} 7. Ne4
{[%clk 0:04:49.6]} 7... Nxe4 {[%clk 0:04:47.3]} 8. dxe4 {[%clk 0:04:44.5]} 8...
Nc6 {[%clk 0:04:47.2]} 9. Nf3 {[%clk 0:04:38.1]} 9... f5 {[%clk 0:04:44.7]} 10.
Qa4 {[%clk 0:04:29.4]} 10... Bd7 {[%clk 0:04:42]} 11. Nxe5 {[%clk 0:04:27.5]}
11... Nxe5 {[%clk 0:04:40.9]} 12. Qxd4 {[%clk 0:04:25.6]} 12... Nc6 {[%clk
0:04:40.1]} 13. Qe3 {[%clk 0:04:21.9]} 13... Bb4+ {[%clk 0:04:38.9]} 14. Bd2
{[%clk 0:04:19.7]} 14... Bxd2+ {[%clk 0:04:37.7]} 15. Qxd2 {[%clk 0:04:15.1]}
15... O-O {[%clk 0:04:37.2]} 16. O-O {[%clk 0:04:10.8]} 16... fxe4 {[%clk
0:04:35.6]} 17. Bxe4 {[%clk 0:04:07.9]} 17... Be6 {[%clk 0:04:34.8]} 18. Qe3
{[%clk 0:03:56.8]} 18... Qd4 {[%clk 0:04:29]} 19. Bxh7+ {[%clk 0:03:53.8]} 19...
Kxh7 {[%clk 0:04:27.6]} 20. Qxe6 {[%clk 0:03:51.2]} 20... Rae8 {[%clk
0:04:24.4]} 21. Qh3+ {[%clk 0:03:46.5]} 21... Kg8 {[%clk 0:04:23.8]} 22. e3
{[%clk 0:03:41.5]} 22... Qxb2 {[%clk 0:04:20.7]} 23. a4 {[%clk 0:03:37.8]} 23...
Rxf2 {[%clk 0:04:17.2]} 24. Rxf2 {[%clk 0:03:35.6]} 24... Qxa1+ {[%clk
0:04:16.5]} 25. Kg2 {[%clk 0:03:34.4]} 25... Qxa4 {[%clk 0:04:13.5]} 26. Qd7
{[%clk 0:03:32.5]} 26... Qe4+ {[%clk 0:04:12.4]} 27. Kh3 {[%clk 0:03:27.2]}
27... Qe6+ {[%clk 0:04:08.3]} 28. Qxe6+ {[%clk 0:03:23.5]} 28... Rxe6 {[%clk
0:04:08.2]} 29. Rf3 {[%clk 0:03:21.1]} 29... a5 {[%clk 0:04:05.3]} 30. Kg4
{[%clk 0:03:16.1]} 30... a4 {[%clk 0:04:03.5]} 31. e4 {[%clk 0:03:13]} 31...
Rxe4+ {[%clk 0:04:02.4]} 32. Kf5 {[%clk 0:03:11.4]} 32... Re7 {[%clk 0:04:01]}
33. Ra3 {[%clk 0:03:06.9]} 33... b5 {[%clk 0:03:59.8]} 34. Kg6 {[%clk
0:03:04.2]} 34... Re6+ {[%clk 0:03:56.6]} 35. Kf5 {[%clk 0:03:02.3]} 35... Rf6+
{[%clk 0:03:55.1]} 36. Ke4 {[%clk 0:03:00.2]} 36... Rh6 {[%clk 0:03:50]} 37. h4
{[%clk 0:02:58]} 37... Kf7 {[%clk 0:03:48.2]} 38. Kd5 {[%clk 0:02:56.8]} 38...
Ne7+ {[%clk 0:03:38.7]} 39. Kc5 {[%clk 0:02:50.1]} 39... Rh5+ {[%clk 0:03:38]}
40. Kb6 {[%clk 0:02:45.9]} 40... b4 {[%clk 0:03:37.2]} 41. Rxa4 {[%clk
0:02:42.9]} 41... Kf6 {[%clk 0:03:35.5]} 42. Kc7 {[%clk 0:02:38.1]} 42... Rb5
{[%clk 0:03:31.7]} 43. Ra6+ {[%clk 0:02:36.1]} 43... Kf7 {[%clk 0:03:29.3]} 44.
Kd7 {[%clk 0:02:33.8]} 44... b3 {[%clk 0:03:27.5]} 45. Ra1 {[%clk 0:02:31.9]}
45... b2 {[%clk 0:03:25.6]} 46. Rf1+ {[%clk 0:02:30.4]} 46... Kg6 {[%clk
0:03:23.8]} 47. h5+ {[%clk 0:02:24.3]} 47... Kxh5 {[%clk 0:03:21.4]} 48. Rh1+
{[%clk 0:02:23.3]} 48... Kg6 {[%clk 0:03:20.5]} 49. Rb1 {[%clk 0:02:21.6]} 49...
Nd5 {[%clk 0:03:19.6]} 50. Kc6 {[%clk 0:02:19.6]} 50... Nc3 {[%clk 0:03:19]} 51.
Rh1 {[%clk 0:02:11.1]} 51... b1=Q {[%clk 0:03:17.4]} 52. Rh2 {[%clk 0:02:06.7]}
52... Qe4+ {[%clk 0:03:15.6]} 53. Kd6 {[%clk 0:02:03.1]} 53... Qe5+ {[%clk
0:03:14.6]} 0-1

[Event "Live Chess"]
[Site "Chess.com"]
[Date "2023.05.20"]
[Round "-"]
[White "Bob2pen"]
[Black "TobyQuaite"]
[Result "1-0"]
[WhiteElo "1797"]
[BlackElo "1678"]
[TimeControl "300"]
[EndTime "12:39:05 PDT"]
[Termination "Bob2pen won by resignation"]

1. e4 {[%clk 0:04:54.5]} 1... e6 {[%clk 0:04:57.7]} 2. d4 {[%clk 0:04:53.1]}
2... d5 {[%clk 0:04:57]} 3. Nc3 {[%clk 0:04:52.4]} 3... Bb4 {[%clk 0:04:55.7]}
4. e5 {[%clk 0:04:50.8]} 4... c5 {[%clk 0:04:54.5]} 5. a3 {[%clk 0:04:50]} 5...
Bxc3+ {[%clk 0:04:53.7]} 6. bxc3 {[%clk 0:04:49.1]} 6... Qc7 {[%clk 0:04:53.6]}
7. Qg4 {[%clk 0:04:46.9]} 7... Ne7 {[%clk 0:04:53.2]} 8. Qxg7 {[%clk 0:04:45.6]}
8... Rg8 {[%clk 0:04:52.8]} 9. Qxh7 {[%clk 0:04:44.9]} 9... cxd4 {[%clk
0:04:52.3]} 10. Ne2 {[%clk 0:04:43.1]} 10... Qxe5 {[%clk 0:04:50.1]} 11. Bf4
{[%clk 0:04:38]} 11... Qh8 {[%clk 0:04:44.8]} 12. Qxh8 {[%clk 0:04:33.7]} 12...
Rxh8 {[%clk 0:04:44.1]} 13. cxd4 {[%clk 0:04:32.7]} 13... Nbc6 {[%clk
0:04:41.6]} 14. c3 {[%clk 0:04:30.4]} 14... Ng6 {[%clk 0:04:39.9]} 15. Bg5
{[%clk 0:04:23.4]} 15... Bd7 {[%clk 0:04:35.4]} 16. h4 {[%clk 0:04:17.8]} 16...
Kf8 {[%clk 0:04:29.4]} 17. h5 {[%clk 0:04:14]} 17... Kg7 {[%clk 0:04:25.1]} 18.
g4 {[%clk 0:04:09.9]} 18... f6 {[%clk 0:04:23.6]} 19. Be3 {[%clk 0:03:59.4]}
19... e5 {[%clk 0:04:22.2]} 20. Bg2 {[%clk 0:03:54.5]} 20... exd4 {[%clk
0:04:13.9]} 21. Nxd4 {[%clk 0:03:48.4]} 21... Nge5 {[%clk 0:04:09.5]} 22. h6+
{[%clk 0:03:33.3]} 22... Kg6 {[%clk 0:04:01.5]} 23. Bxd5 {[%clk 0:03:28.7]}
23... Nxg4 {[%clk 0:03:50.3]} 24. h7 {[%clk 0:03:18.9]} 24... Rxh7 {[%clk
0:03:38.2]} 25. Be4+ {[%clk 0:03:08.6]} 25... f5 {[%clk 0:03:37.2]} 26. Rxh7
{[%clk 0:03:06.9]} 26... Kxh7 {[%clk 0:03:34.4]} 27. Nxf5 {[%clk 0:03:05.6]}
27... Nf6 {[%clk 0:03:23]} 28. Bc2 {[%clk 0:02:56.9]} 28... Bxf5 {[%clk
0:03:12.2]} 29. Bxf5+ {[%clk 0:02:54.1]} 29... Kg7 {[%clk 0:03:11.8]} 30. Bd4
{[%clk 0:02:52]} 30... Nxd4 {[%clk 0:03:08.9]} 31. cxd4 {[%clk 0:02:50.7]} 31...
Rd8 {[%clk 0:03:08.8]} 32. Rd1 {[%clk 0:02:45.9]} 32... Ne8 {[%clk 0:03:02.5]}
33. Be4 {[%clk 0:02:40.3]} 33... Nd6 {[%clk 0:03:00.9]} 34. Bf3 {[%clk
0:02:36.1]} 34... Nb5 {[%clk 0:02:58.5]} 35. a4 {[%clk 0:02:32.5]} 35... Nxd4
{[%clk 0:02:55.9]} 36. Bxb7 {[%clk 0:02:23]} 36... Nc2+ {[%clk 0:02:51.3]} 37.
Ke2 {[%clk 0:02:19.4]} 37... Re8+ {[%clk 0:02:37.8]} 38. Kd2 {[%clk 0:02:13.1]}
38... Nb4 {[%clk 0:02:33.8]} 39. Kc3 {[%clk 0:02:06.9]} 39... a5 {[%clk
0:02:32.6]} 40. f3 {[%clk 0:02:02]} 40... Re5 {[%clk 0:02:25.6]} 41. Be4 {[%clk
0:01:58.4]} 41... Kf6 {[%clk 0:02:22.1]} 42. Rd6+ {[%clk 0:01:56.6]} 42... Ke7
{[%clk 0:02:15.7]} 43. Rh6 {[%clk 0:01:52.4]} 43... Re6 {[%clk 0:02:02]} 44.
Rxe6+ {[%clk 0:01:50.6]} 44... Kxe6 {[%clk 0:02:01.9]} 45. Kd4 {[%clk
0:01:49.5]} 45... Kd6 {[%clk 0:01:53.1]} 46. f4 {[%clk 0:01:48.1]} 46... Na6
{[%clk 0:01:50.5]} 47. Kc4 {[%clk 0:01:43.7]} 47... Nc5 {[%clk 0:01:39.8]} 48.
Bc2 {[%clk 0:01:40.9]} 48... Ne6 {[%clk 0:01:36.9]} 49. f5 {[%clk 0:01:38.3]}
49... Nf4 {[%clk 0:01:28.8]} 50. Kb5 {[%clk 0:01:35.9]} 50... Kc7 {[%clk
0:01:23.7]} 51. Kxa5 {[%clk 0:01:32.8]} 51... Nd5 {[%clk 0:01:21]} 52. Kb5
{[%clk 0:01:26.8]} 52... Kb7 {[%clk 0:01:17.5]} 53. Be4 {[%clk 0:01:24.9]} 1-0

[Event "Live Chess"]
[Site "Chess.com"]
[Date "2023.05.20"]
[Round "-"]
[White "wot-not"]
[Black "LiamBellwood"]
[Result "0-1"]
[WhiteElo "1483"]
[BlackElo "2060"]
[TimeControl "300"]
[EndTime "12:39:18 PDT"]
[Termination "LiamBellwood won by resignation"]

1. e4 {[%clk 0:04:56]} 1... e6 {[%clk 0:04:59.9]} 2. f4 {[%clk 0:04:54.9]} 2...
d5 {[%clk 0:04:59.5]} 3. e5 {[%clk 0:04:53.9]} 3... c5 {[%clk 0:04:59.1]} 4. Nf3
{[%clk 0:04:53.5]} 4... Nc6 {[%clk 0:04:58.7]} 5. d4 {[%clk 0:04:53.3]} 5... Nh6
{[%clk 0:04:58.3]} 6. Bd3 {[%clk 0:04:52.8]} 6... c4 {[%clk 0:04:56.1]} 7. Be2
{[%clk 0:04:50.9]} 7... Nf5 {[%clk 0:04:55.8]} 8. O-O {[%clk 0:04:48.9]} 8...
Qb6 {[%clk 0:04:51.4]} 9. c3 {[%clk 0:04:41.1]} 9... h5 {[%clk 0:04:50.5]} 10.
Nbd2 {[%clk 0:04:35.7]} 10... Ne3 {[%clk 0:04:49.1]} 11. Qe1 {[%clk 0:04:34.8]}
11... Nc2 {[%clk 0:04:45.1]} 12. Qh4 {[%clk 0:04:13.2]} 12... Nxa1 {[%clk
0:04:32.9]} 13. Ng5 {[%clk 0:04:12.5]} 13... Be7 {[%clk 0:04:25.8]} 14. Qg3
{[%clk 0:03:48.5]} 14... Qa5 {[%clk 0:04:15.5]} 15. Ndf3 {[%clk 0:03:35.5]}
15... Bd7 {[%clk 0:04:02.6]} 16. Nxf7 {[%clk 0:03:31]} 16... Kxf7 {[%clk
0:03:49.5]} 17. Ng5+ {[%clk 0:03:29.2]} 17... Bxg5 {[%clk 0:03:49.1]} 18. Qxg5
{[%clk 0:03:28.6]} 18... Qd8 {[%clk 0:03:37.5]} 19. Bxh5+ {[%clk 0:03:26.2]}
19... Kg8 {[%clk 0:03:23.8]} 20. Qg6 {[%clk 0:03:22]} 20... Qe8 {[%clk
0:03:16.5]} 21. Qb1 {[%clk 0:03:14]} 21... Qxh5 {[%clk 0:03:14.1]} 0-1